Cogmind - Beta 13 @@@ ROGUE MODE // 2024.07.15 @ 22:48:42 Player: Triffids Result: Self-destructed Performance ------------- Evolutions (1) 500 Regions Visited (2) 400 Robots Destroyed (19) 95 Value Destroyed (378) 378 Prototype IDs (2) 40 Alien Tech Used (0) 0 Bonus (0) 0 TOTAL SCORE: 1413 Bonus ------- None Cogmind --------- Core Integrity 210/400 Matter 291/300 Energy 100/100 System Corruption 5% Temperature Warning (337) Movement Core (100) Ox1 Location -9/Materials Parts ------- > --- POWER (1) -------- (None) > --- PROPULSION (2) --- (None) > --- UTILITY (3) ------ Small Storage Unit Improved Terrain Scanner Terrain Scan Processor > --- WEAPON (3) ------- (None) > --- INVENTORY (8) ---- Light Ion Engine Light Ion Engine Aluminum Leg Aluminum Leg Small Battery (100) Medium Matter Pod (35) Signal Interpreter Peak State ------------ > --- POWER ------------ Ion Engine > --- PROPULSION ------- Aluminum Leg Aluminum Leg > --- UTILITY ---------- Small Storage Unit Improved Terrain Scanner Terrain Scan Processor > --- WEAPON ----------- Medium Laser Small Laser Particle Gun > --- INVENTORY -------- Light Ion Engine Light Ion Engine Aluminum Leg Aluminum Leg Small Battery Medium Matter Pod Signal Interpreter [Rating: 13] Favorites ----------- Power Light Ion Engine Engine Light Ion Engine Propulsion Aluminum Leg Leg Aluminum Leg Utility Small Storage Unit Device Improved Terrain Scanner Storage Small Storage Unit Processor Terrain Scan Processor Weapon Medium Laser Energy Gun Medium Laser Ballistic Gun Assault Rifle Build | -11 -10 -9 ------- Run | Yrd Mat Mat Slots Evolved 2 | . . 2 Power . | . . . Propulsion . | . . . Utility 1 | . . 1 Weapon 1 | . . 1 Parts Attached 15 | 7 1 7 Power 3 | 1 1 1 Engine 3 | 1 1 1 Core . | . . . Reactor . | . . . Propulsion 3 | 2 . 1 Treads . | . . . Leg 3 | 2 . 1 Wheel . | . . . Hover . | . . . Flight . | . . . Utility 4 | 2 . 2 Device 2 | 1 . 1 Storage 1 | 1 . . Processor 1 | . . 1 Hackware . | . . . Protection . | . . . Artifact . | . . . Weapon 5 | 2 . 3 Energy Gun 4 | 1 . 3 Energy Cannon . | . . . Ballistic Gun 1 | 1 . . Ballistic Cannon . | . . . Launcher . | . . . Special Weapon . | . . . Impact Weapon . | . . . Slashing Weapon . | . . . Piercing Weapon . | . . . Special Melee Weapon . | . . . Unidentified Prototypes . | . . . Parts Lost 7 | . 1 6 Power 1 | . . 1 Propulsion 2 | . . 2 Utility 1 | . 1 . Weapon 3 | . . 3 Highest Loss Streak 6 | . 1 6 To Critical Strikes . | . . . Average Slot Usage (%) 90 | . 91 88 Engine 12 | . 14 10 Leg 24 | . 28 18 Device 7 | . 6 11 Storage 12 | . 14 11 Processor 3 | . . 11 Energy Gun 15 | . 14 19 Ballistic Gun 11 | . 14 5 Naked Turns . | . . . Heaviest Build 17 | 13 13 17 Greatest Support 20 | 20 20 20 Greatest Overweight (x) 1 | 1 . 1 Average Overweight (x) . | . . . Largest Inventory Capacity 8 | 8 8 8 Average Capacity 7 | 7 8 8 Most Carried 8 | 5 8 7 Average Carried 5 | 3 7 5 Final Capacity 8 | 8 8 8 Final Carried 8 | 4 8 7 Class Distribution -------------------- 76% | Mutant 14% | Skirmisher 8% | Scavenger-Mutant Dominant Class ---------------- Mutant | -10/Materials Skirmisher | -9/Materials Resources | -11 -10 -9 ----------- Run | Yrd Mat Mat Matter Collected 524 | 348 109 67 Remotely . | . . . Salvage Created 676 | 155 161 360 Parts 34 | 12 8 14 Haulers Intercepted 1 | . 1 . Recyclers Shooed 2 | 1 . 1 Parts Field Recycled . | . . . Retrieved Matter . | . . . Parts Self-Destructed . | . . . Prevented . | . . . Kills | -11 -10 -9 ------- Run | Yrd Mat Mat Combat Hostiles Destroyed 9 | . 2 7 Guns 9 | . 2 7 Classes Destroyed 7 | 2 4 1 Builder 1 | . 1 . Tunneler 5 | 5 . . Hauler 1 | . 1 . Recycler 2 | 1 . 1 Watcher 1 | . 1 . Grunt 8 | . 2 6 Brawler 1 | . . 1 Best Kill Streak 6 | 2 2 6 Combat Bots Only 5 | . 1 5 Max Kills in Single Turn 2 | 1 1 2 Gunslinging . | . . . Exploded . | . . . Melee . | . . . Uniques/NPCs Destroyed . | . . . Combat | -11 -10 -9 -------- Run | Yrd Mat Mat Hostile Shots Fired 68 | . 18 50 Missed 11 | . 5 6 Damage Taken 787 | . 143 644 Core 201 | . 11 190 Absorbed by Shields . | . . . Core Remaining (%) 97 | 100 95 . Volleys Fired 75 | 26 23 26 Largest 3 | 2 2 3 Hottest 155 | 70 70 155 Shots Fired 160 | 52 46 62 Gun 160 | 52 46 62 Cannon . | . . . Launcher . | . . . Special . | . . . Kinetic 61 | 26 23 12 Thermal 99 | 26 23 50 Explosive . | . . . Electromagnetic . | . . . Robot Hit Streak 11 | 9 11 10 Robot Miss Streak 5 | 5 3 3 Penetration Max . | . . . Secondary Targets 4 | . . 4 Max Gunslinging Chain 1 | . . 1 Shots Hit Robots 100 | 28 32 40 Core Hits 31 | 7 7 17 Critical Kills . | . . . Critical Parts Destroyed . | . . . Critical Strikes 6 | 2 1 3 Burn 6 | 2 1 3 Melee Attacks . | . . . Impact . | . . . Slashing . | . . . Piercing . | . . . Sneak Attacks . | . . . Combat Hostiles . | . . . Follow-up Attacks . | . . . Damage Inflicted 1288 | 349 396 543 Guns 1288 | 349 396 543 Cannons . | . . . Explosions . | . . . Melee . | . . . Ramming . | . . . Kinetic 479 | 176 195 108 Thermal 809 | 173 201 435 Explosive . | . . . Electromagnetic . | . . . Impact . | . . . Slashing . | . . . Piercing . | . . . Highest Corruption 5 | . . 5 Average Corruption 5 | . . 5 Corruption Purged . | . . . Corruption Blocked . | . . . Effects 1 | . . 1 Message Errors 1 | . . 1 Overload Shots . | . . . Overflow Damage . | . . . Projectiles . | . . . Explosions . | . . . Melee . | . . . Knockbacks . | . . . Impact . | . . . Kinetic . | . . . Secondary . | . . . Self-Inflicted Damage . | . . . Shots . | . . . Rammed . | . . . Targets Rammed . | . . . Kicked . | . . . Crushed . | . . . Highest Temperature 609 | 54 172 609 Average Temperature 125 | 21 82 238 Received Heat Transfer 378 | . 78 300 Effects 17 | . . 17 Shutdowns 2 | . . 2 Energy Bleed 1 | . . 1 Interference 2 | . . 2 Short Circuit 2 | . . 2 Damage (minor) 4 | . . 4 Damage (major) 5 | . . 5 Damage (core) 1 | . . 1 Siege Activations . | . . . Robots Corrupted . | . . . Combat Hostiles . | . . . Parts Fried . | . . . Impact Corruptions . | . . . Robots Melted . | . . . Combat Hostiles . | . . . Parts Melted 7 | 1 3 3 Heat Transferred 2669 | 666 666 1337 Parts Sabotaged . | . . . Parts Stolen . | . . . Parts Stripped . | . . . Power Chain Reactions . | . . . Alert | -11 -10 -9 ------- Run | Yrd Mat Mat Peak Influence 230 | 30 97 230 Initial 40 | . 19 40 Average 57 | 15 63 101 Maximum Alert Level 1 | . . 1 Low Security (%) 96 | 100 100 87 Level 1 3 | . . 12 Level 2 . | . . . Level 3 . | . . . Level 4 . | . . . Level 5 . | . . . High Security . | . . . Max Security . | . . . Squads Dispatched 3 | . 1 2 Investigation . | . . . Extermination . | . . . Reinforcement 3 | . 1 2 Assault . | . . . Garrison . | . . . Intercept . | . . . Searches Triggered . | . . . Construction Impeded . | . . . Haulers Reinforced . | . . . Active Scanning Responses . | . . . Cargo Convoy Interrupts . | . . . Stealth | -11 -10 -9 --------- Run | Yrd Mat Mat Distress Signals 2 | . . 2 Communications Jammed . | . . . Distress Signals . | . . . Times Spotted 19 | . 3 16 Peak Tracking Total 9 | . 2 9 Tactical Retreats . | . . . Traps | -11 -10 -9 ------- Run | Yrd Mat Mat Traps Triggered 2 | . . 2 Indirectly . | . . . Trap Hack Attempts . | . . . Triggered . | . . . Disarmed . | . . . Reprogrammed . | . . . Reused . | . . . Traps Extracted . | . . . Installed . | . . . Triggered . | . . . Machines | -11 -10 -9 ---------- Run | Yrd Mat Mat Machines Disabled . | . . . Max in Single Turn . | . . . Machines Repaired . | . . . Machines Dismantled . | . . . Machines Sabotaged . | . . . Overloaded Fab Kills . | . . . Hacking | -11 -10 -9 --------- Run | Yrd Mat Mat Machines Accessed 4 | . 4 . Terminals 4 | . 4 . Fabricators . | . . . Repair Stations . | . . . Recycling Units . | . . . Scanalyzers . | . . . Garrison Access . | . . . Total Hacks 13 | . 13 . Successful 9 | . 9 . Failed 4 | . 4 . Catastrophic 1 | . 1 . Database Lockouts . | . . . Manual 7 | . 7 . Terminals 13 | . 13 . Fabricators . | . . . Repair Stations . | . . . Recycling Units . | . . . Scanalyzers . | . . . Garrison Access . | . . . Terminal Hacks 6 | . 6 . Prototype ID Bank 1 | . 1 . Branch Access Points 1 | . 1 . Terminal Index 1 | . 1 . Locate Traps 1 | . 1 . Hauler Manifests 1 | . 1 . Zone Layout 1 | . 1 . Fabricator Hacks . | . . . Repair Station Hacks . | . . . Recycling Unit Hacks . | . . . Scanalyzer . | . . . Garrison Access Hacks . | . . . Unauthorized Hacks 3 | . 3 . Terminals 3 | . 3 . Botnet 3 | . 3 . Fabricators . | . . . Repair Stations . | . . . Recycling Units . | . . . Scanalyzers . | . . . Garrison Access . | . . . Data Cores Recovered . | . . . Used . | . . . Hacking Detections 4 | . 4 . Full Trace Events . | . . . Feedback Events . | . . . Feedback Blocked . | . . . Robot Schematics Acquired . | . . . Robots Built . | . . . Authchips . | . . . Time . | . . . Total Robot Build Rating . | . . . Part Schematics Acquired . | . . . Parts Built . | . . . Authchips . | . . . Time . | . . . Total Part Build Rating . | . . . Parts Repaired . | . . . Time . | . . . Parts Recycled . | . . . Recycled Matter . | . . . Retrieved Matter . | . . . Retrieved Components . | . . . Parts Scanalyzed . | . . . Part Schematics Acquired . | . . . Parts Damaged . | . . . Bothacking | -11 -10 -9 ------------ Run | Yrd Mat Mat Used RIF Installer . | . . . Robots Hacked . | . . . Non-combat . | . . . Combat . | . . . Robot Hacks Applied . | . . . Relay Couplers Released . | . . . Fabnet Peak Effective % . | . . . Robots Rewired . | . . . Allies Hacked . | . . . Hacks Repelled . | . . . Allies | -11 -10 -9 -------- Run | Yrd Mat Mat Total Allies . | . . . Largest Group . | . . . Highest-Rated Group . | . . . Highest-Rated Ally . | . . . Total Orders . | . . . Ally Attacks . | . . . Total Damage . | . . . Kills . | . . . Allies Corrupted . | . . . Allies Melted . | . . . Intel | -11 -10 -9 ------- Run | Yrd Mat Mat Robot Analysis Total . | . . . Derelict Logs Recovered . | . . . Drone Launches . | . . . Drone Recoveries . | . . . Exploration | -11 -10 -9 ------------- Run | Yrd Mat Mat Turns Passed 792 | 247 352 193 Spaces Moved 416 | 128 224 64 Core 16 | 16 . . Treads . | . . . Legs 400 | 112 224 64 Wheels . | . . . Hover . | . . . Flight . | . . . Fastest Speed 50 | 50 120 120 Average Speed 121 | 117 120 133 Slowest Speed 190 | 120 120 190 Overloaded Moves . | . . . Propulsion Burnouts . | . . . Robots Hopped . | . . . Cave-ins Triggered . | . . . Exploration Rate (%) 18 | 7 37 12 Regions Visited 2 Branch Regions . Pre-discovered Areas . | . . . Known Exits Taken . | . . . Unknown Exits Taken 2 | 1 1 . Scrap Searched . | . . . Spaces Dug . | . . . Terrain Destroyed . | . . . Melee . | . . . Projectile . | . . . AOE . | . . . Terrain Rammed . | . . . Walls Destroyed . | . . . Machines Disabled . | . . . Actions | -11 -10 -9 --------- Run | Yrd Mat Mat Total 552 | 171 262 119 Wait 31 | 4 6 21 Move 414 | 127 223 64 Hop . | . . . Pick Up 14 | 7 6 1 Fast Attach 7 | 4 . 3 Attach 6 | 3 . 3 Detach . | . . . Swap 2 | . 1 1 Drop 3 | . 3 . Fire 75 | 26 23 26 Melee . | . . . Ram . | . . . Kick . | . . . Crush . | . . . Escape Stasis . | . . . Rewire . | . . . Trap . | . . . Miscellaneous . | . . . Route ------- -11/Scrapyard -10/Materials (discovered 3 exits: [*Mat] / Min x2) -9/Materials History --------- Turn | Location | Event 10 | -11/Scrapyard | Discovered new exit (range 16) 248 | -11/Scrapyard | Entered Materials 314 | -10/Materials | Build established: Mutant 492 | -10/Materials | Identified exit to Mines 502 | -10/Materials | Discovered new exit (range 16) 600 | -10/Materials | Entered another Materials area 600 | -9/Materials | Evolved 2 slots: Utility x1, Weapon x1 793 | -9/Materials | Self-destructed Last Messages --------------- 00777_ Overheating: Sml. Storage Unit damaged (-25). 00778_ Overheating: Energy bleed (-51). 00778_ K-01 Serf collects debris. 00779_ Particle Gun destroyed. 00780_ Aluminum Leg broken. 00780_ Overheating: Short circuit. 00780_ K-01 Serf cleans the Neutrino Reactor. 00781_ Overheating: Broken Aluminum Leg damaged (-12). 00781_ Overheating: Imp. Terrain Scanner damaged (-4). 00781_ Overheating: Sml. Storage Unit damaged (-30). 00781_ R-06 Scavenger collects Aluminum Leg. 00783_ Ion Engine destroyed. 00783_ K-01 Serf collects debris. 00785_ Broken Aluminum Leg destroyed. 00785_ K-01 Serf collects debris. 00786_ Overheating: Sml. Storage Unit damaged (-10). 00786_ R-06 Scavenger collects Lgt. Treads. 00787_ K-01 Serf collects debris. 00789_ Aluminum Leg destroyed. 00790_ K-01 Serf collects debris. Map ----- +----------------------------------------------------+ | ?????# # ##########??#?#??????????????? | | ?????# # ##########???????????? | | ?????# # # #???????????? | | ??? ?# + |! T # #???????????? | | ?????# # |! # #???????????? | | ?????# # # # ??????????? | | ?????# #!! # #????+??????? | | ?????# #!! # #??????? ???? | | ?????########### + #???????????? | | ?????#???####### # #???????????? | | ??????#?###?### # #???????????? | | ??????########## ##########???????????? | | ????? #########?####? ?? ????????? | | ???? #########?#??? ? ??? ???????? | | ????? #####?#??#???#??? ??????????? | | ??????############ ############## ?????????? | | ???????##?### ??# ! ?????????? | | ?????? ???### ? ?# ^^ ?????????? | | ????? ???###??? ## ^ == ?????????? | | ?????? ? ?? ? ?#######u####### =| ?????????? | | ???????? ?##? ??#??### ar ##?# ??????????? | | ??????? ?##? ####??#""" ##???? ? ???????????? | | ???????#?#?######???##"""%k ####? ?????????? | | ???????#?#?#?###?#?#?#"""% #### """???????????? | | ???????????#?######??# =gkg!+ """ ??????????? | | ????????#?##?##?###?## @|*#### """ ??????????? | | ?????????#?#####??#?#########?## ? ?????????????? | | ??????????#####?#?#????##?#?#???? ? ??? ?????????? | | ????????????###????????###????##?? ? ????????????? | | ???????????#???#??#?????##?##??? ???????????????? | | ??????????????#??#? ? ??? ? ?????? ?????????????? | | ???????????? ??### ? ? ?? ??? ? ???????????? | | ???????????? ????#??? ? ?? ???????? ???????????? | | ??????????????#?#? ? #??#?+??#?#?#???#???????????? | | ??????????????##?# ? ?? ? ???????#?????????????? | | ????????????? ????? ???? ? ??##?????????????????? | | ???????????????#?? ??? ? ? ??????##??????????????? | | ??????????????? ?? ???? ???? ???#???????????????? | | ?????????????????????? ?? ????##????????????????? | | ??????????????????? ???"?? ?????????????????????? | | ?????????????????? ????????? ????????????????????? | | ?????????????????????????????????????????????????? | | ?????????????????????????????????????????????????? | | ?????????????????????????????????????????????????? | | ?????????????????????????????????????????????????? | | ?????????????????????????????????????????????????? | | ?????????????????????????????????????????????????? | | ?????????????????????????????????????????????????? | | ?????????????????????????????????????????????????? | | ?????????????????????????????????????????????????? | +----------------------------------------------------+ Best States ------------- Heat Dissipation 28 Energy Generation 10 Energy Capacity 250 Matter Stores 300 Matter Capacity 300 Sight Range 16 Terrain Scan Range 16 Terrain Scan Density 85 Evasion (%) 55 Item Schematics ----------------- None Robot Schematics ------------------ None Fabricated ------------ Nothing Alien Tech Used ----------------- None Achievements -------------- None Challenges ------------ None Game ------ Seed KineticDeliveryCasing Manual? 0 Play Time 00:19:24 Cumulative 204.3 hours Start 2024.07.15 @ 22:33:43 End 2024.07.15 @ 22:48:42 Sessions 1 Manual Loads 0 Difficulty Rogue Special Mode None Game No. 329 Rogue 329 Adventurer 0 Explorer 0 Win Type - Total 1 Types 1/0/0/0/0/0/0/0/0 Lore% 45 Gallery% 54 Achievement% 38 Wizard Run 0 Options --------- Layout 1 ASCII 0 Keyboard 1 Movement Vi Keybinds 0 Fullscreen 0 Font 20/SmallcapsGlow Map View 59x39 Zoom Use 0% Tactical HUD 1 Map Filters NONE Filters NONE Steam 1 RUN: c11b898d-a05d-45fe-940b-fa6c7f4f4e80